bitfinex/quotes_BTCUSD_20241022
["timestamp","ask_amount","ask_price","bid_price","bid_amount"]
[1729555824459,0.296736,67400.0,67395.0,0.00493729]
[1729555824706,0.22203473,67396.0,67395.0,0.35055844]
[1729555824929,0.148374,67397.0,67396.0,0.18069306]
[1729555825158,0.148374,67397.0,67396.0,0.18103729]
[1729555825617,0.148374,67397.0,67396.0,0.185581]
[1729555826050,0.148374,67397.0,67396.0,0.187581]
[1729555826521,0.14837,67399.0,67398.0,0.002]
[1729555826739,0.14837,67399.0,67398.0,0.0785]
[1729555827195,0.14837,67399.0,67398.0,0.08304371]
[1729555827434,0.14837,67399.0,67398.0,0.17824371]
[1729555827651,0.15237,67399.0,67398.0,0.17824371]
[1729555827864,0.14837,67399.0,67398.0,0.183181]
[1729555828329,0.15237,67399.0,67398.0,0.183181]
[1729555828552,0.004,67399.0,67398.0,0.183181]
[1729555828852,6.001e-05,67399.0,67398.0,0.6500333]
[1729555829732,0.00306001,67399.0,67398.0,0.6500333]
[1729555829957,0.00471201,67399.0,67398.0,0.6600333]
[1729555830175,0.004652,67399.0,67398.0,0.6600333]
[1729555830398,0.005652,67399.0,67398.0,0.6600333]
[1729555830643,0.005652,67399.0,67398.0,0.69874226]
[1729555830644,0.002652,67399.0,67398.0,0.69874226]
[1729555830875,0.002652,67399.0,67398.0,0.69974226]
[1729555831106,0.001652,67399.0,67398.0,0.69874226]
[1729555831331,0.002652,67399.0,67398.0,0.75364605]
[1729555831590,0.001654,67409.0,67408.0,0.00693729]
[1729555831821,0.001654,67409.0,67408.0,0.35425844]
[1729555832064,0.150002,67409.0,67408.0,0.19374653]
[1729555833015,0.151002,67409.0,67408.0,0.19374653]
[1729555834808,0.150002,67409.0,67408.0,0.19374653]
[1729555836259,0.151002,67409.0,67408.0,0.19374653]
[1729555836515,0.150002,67409.0,67408.0,0.19374653]
[1729555836902,0.151002,67409.0,67408.0,0.19374653]
[1729555837740,0.002654,67409.0,67408.0,0.19374653]
[1729555837924,0.151002,67409.0,67408.0,0.19374653]
[1729555838101,0.151002,67409.0,67408.0,0.23965819]
[1729555838553,0.002654,67409.0,67408.0,0.23965819]
[1729555839161,0.14707263,67409.0,67408.0,0.23965819]
[1729555840097,0.14707263,67409.0,67408.0,0.24065819]
[1729555840375,0.14707263,67409.0,67408.0,0.24165819]
[1729555842009,0.296685,67412.0,67408.0,0.24165819]
[1729555842260,0.148346,67410.0,67409.0,0.04591166]
[1729555842689,0.148346,67410.0,67409.0,0.05386562]
[1729555843189,0.2225171,67410.0,67409.0,0.05386562]
[1729555843422,0.148346,67410.0,67409.0,0.05386562]
[1729555843655,0.148346,67410.0,67409.0,0.04591166]
[1729555843870,0.148346,67410.0,67409.0,0.05386618]
[1729555844301,0.148346,67410.0,67409.0,0.05586618]
[1729555844723,0.148346,67410.0,67409.0,0.05786618]
[1729555846512,0.29668,67413.0,67409.0,0.05786618]
[1729555846745,0.148345,67410.0,67409.0,0.01195452]
[1729555846958,0.148345,67410.0,67409.0,0.05807608]
[1729555847595,0.148345,67410.0,67409.0,0.05407608]
[1729555848327,0.2226161,67410.0,67409.0,0.05407608]
[1729555848767,0.148345,67410.0,67409.0,0.05407608]
[1729555848981,0.296687,67411.0,67409.0,0.05407608]
[1729555849170,0.148343,67411.0,67410.0,0.04612156]
[1729555850590,0.148343,67411.0,67410.0,0.04812156]
[1729555851062,0.296678,67414.0,67410.0,0.04812156]
[1729555851282,0.148341,67412.0,67411.0,0.14342156]
[1729555851752,0.148341,67412.0,67411.0,0.15137608]
[1729555853579,0.34471387,67412.0,67411.0,0.05407608]
[1729555853824,0.51588702,67412.0,67411.0,0.05407608]
[1729555854035,0.51588702,67412.0,67411.0,0.04612156]
[1729555854489,0.41951415,67412.0,67411.0,0.04612156]
[1729555855977,0.148356,67405.0,67404.0,0.00615885]
[1729555856188,0.148356,67405.0,67404.0,0.05959843]
[1729555857265,0.148356,67405.0,67404.0,0.06659843]
[1729555857491,0.148356,67405.0,67404.0,0.06459843]
[1729555858580,0.149356,67405.0,67404.0,0.07159843]
[1729555859014,0.149356,67405.0,67404.0,0.14829843]
[1729555859688,0.149356,67405.0,67404.0,0.15029843]
[1729555860546,0.149356,67405.0,67404.0,0.14829843]
[1729555860782,0.149356,67405.0,67404.0,0.15029843]
[1729555864504,0.149356,67405.0,67404.0,0.14829843]
[1729555865133,0.149356,67405.0,67404.0,0.15029843]
[1729555865378,0.149356,67405.0,67404.0,0.15112343]
[1729555865567,0.149356,67405.0,67404.0,0.10484089]
[1729555865775,0.149356,67405.0,67404.0,0.15120546]
[1729555867840,0.149356,67405.0,67404.0,0.10484089]
[1729555867841,0.149356,67405.0,67404.0,0.10284089]
[1729555868472,0.19349808,67405.0,67404.0,0.10284089]
[1729555869555,0.19349808,67405.0,67404.0,0.10484089]
[1729555870434,0.21556913,67405.0,67404.0,0.10484089]
[1729555870652,0.149356,67405.0,67404.0,0.10484089]
[1729555871409,0.21574326,67405.0,67404.0,0.10484089]
[1729555873461,0.149356,67405.0,67404.0,0.10484089]
[1729555874214,0.31280362,67405.0,67404.0,0.10484089]
[1729555874438,0.40131997,67405.0,67404.0,0.10484089]
[1729555876313,0.31280362,67405.0,67404.0,0.10484089]
[1729555877980,0.151006,67405.0,67404.0,0.10484089]
[1729555878198,0.31447163,67405.0,67404.0,0.10484089]
[1729555880610,0.151006,67405.0,67404.0,0.10484089]
[1729555880833,0.21743733,67405.0,67404.0,0.10484089]
[1729555883104,0.151006,67405.0,67404.0,0.10484089]
[1729555884369,0.3144519,67405.0,67404.0,0.10484089]
[1729555884576,0.151006,67405.0,67404.0,0.10484089]
[1729555885793,0.21742791,67405.0,67404.0,0.10484089]
[1729555886020,0.31445569,67405.0,67404.0,0.10484089]
[1729555886250,0.151006,67405.0,67404.0,0.10484089]
[1729555886471,0.40296892,67405.0,67404.0,0.10284089]
[1729555886690,0.31445257,67405.0,67404.0,0.10284089]
[1729555886965,0.31445257,67405.0,67404.0,0.02614089]
[1729555887435,0.40301668,67405.0,67404.0,0.02614089]
[1729555887679,0.31445257,67405.0,67404.0,0.02614089]
[1729555888384,0.4030228,67405.0,67404.0,0.02614089]
[1729555888606,0.31445257,67405.0,67404.0,0.02614089]
[1729555889074,0.4030302,67405.0,67404.0,0.02614089]
[1729555889336,0.40303146,67405.0,67404.0,0.02814089]
[1729555889580,0.25467546,67405.0,67404.0,0.03814089]
[1729555889817,0.00265,67405.0,67404.0,0.21354089]
[1729555890539,0.151006,67405.0,67404.0,0.21354089]
[1729555894254,0.151006,67405.0,67404.0,0.21257443]
[1729555894727,0.00265,67405.0,67404.0,0.21257443]
[1729555895620,0.00265,67405.0,67404.0,0.20257443]
[1729555895839,0.00265,67405.0,67404.0,0.21257443]
[1729555896311,0.151006,67405.0,67404.0,0.21257443]
[1729555896995,0.00265,67405.0,67404.0,0.21257443]
[1729555898509,0.06909017,67405.0,67404.0,0.21257443]
[1729555899345,0.00265,67405.0,67404.0,0.21257443]
[1729555899552,0.06909017,67405.0,67404.0,0.21257443]
[1729555900337,0.06910663,67405.0,67404.0,0.21257443]
[1729555900693,0.06910663,67405.0,67404.0,0.21170094]
[1729555900902,0.06910663,67405.0,67404.0,0.36005994]
[1729555901117,0.04695612,67405.0,67404.0,0.36005994]
[1729555901321,0.04695612,67405.0,67404.0,0.21170094]
[1729555901814,0.04695612,67405.0,67404.0,0.36005994]
[1729555902021,0.00265,67405.0,67404.0,0.21170094]
[1729555902796,0.00265,67405.0,67404.0,0.25808683]
[1729555928396,0.00265,67405.0,67404.0,0.40644583]
[1729555928608,0.00265,67405.0,67404.0,0.25808683]
[1729555929895,0.00265,67405.0,67404.0,0.36638802]
[1729555932323,0.00265,67405.0,67404.0,0.51474702]
[1729555932549,0.00265,67405.0,67404.0,0.36638802]
[1729555933932,0.00265,67405.0,67404.0,0.51474702]
[1729555934451,0.00265,67405.0,67404.0,0.36638802]
[1729555942578,0.00265,67405.0,67404.0,0.51474702]
[1729555943779,0.00265,67405.0,67404.0,0.36638802]
[1729555945193,0.04697067,67405.0,67404.0,0.36638802]
[1729555947199,0.06913101,67405.0,67404.0,0.36638802]
[1729555947430,0.41023349,67405.0,67404.0,0.01999183]
[1729555947645,1.0305033,67405.0,67404.0,0.014825]
[1729555947848,0.92880009,67405.0,67404.0,0.014825]
[1729555948211,0.92880009,67405.0,67399.0,0.000826]
[1729555948212,0.3221481,67400.0,67399.0,0.000826]
[1729555948532,0.48295842,67400.0,67399.0,0.000826]
[1729555948845,0.72401551,67400.0,67399.0,0.000826]
[1729555949040,0.72401347,67400.0,67399.0,0.000826]
[1729555949497,0.59125961,67400.0,67399.0,0.000826]
[1729555949699,0.7239409,67400.0,67399.0,0.000826]
[1729555950065,0.7329409,67400.0,67399.0,0.001826]
[1729555950513,0.60025961,67400.0,67399.0,0.001826]
[1729555950797,0.32085842,67400.0,67399.0,0.001826]
[1729555951013,0.4092905,67400.0,67399.0,0.001826]
[1729555951245,0.32485842,67400.0,67399.0,0.002826]
[1729555951475,0.161367,67400.0,67399.0,0.002826]
[1729555951686,0.152367,67400.0,67399.0,0.001826]
[1729555951899,0.31556447,67400.0,67399.0,0.001826]
[1729555952135,0.32156447,67400.0,67399.0,0.002826]
[1729555952362,0.32156447,67400.0,67399.0,0.0041449]
[1729555952571,0.006,67400.0,67399.0,0.0031449]
[1729555952780,0.006,67400.0,67399.0,0.00796211]
[1729555952781,0.22167487,67400.0,67399.0,0.00796211]
[1729555952985,0.07730787,67400.0,67399.0,0.0031449]
[1729555953198,0.159367,67400.0,67399.0,0.0031449]
[1729555953352,0.007,67400.0,67399.0,0.0031449]
[1729555953555,0.19957225,67400.0,67399.0,0.0031449]
[1729555953766,0.2005698,67400.0,67399.0,0.0031449]
[1729555954238,0.1925698,67400.0,67399.0,0.0031449]
[1729555954589,0.1935698,67400.0,67399.0,0.0041449]
[1729555955289,0.149367,67400.0,67399.0,0.0051449]
[1729555955545,0.001,67400.0,67399.0,0.0051449]
[1729555955995,0.149367,67400.0,67399.0,0.00996211]
[1729555956182,0.149367,67400.0,67399.0,0.01196211]
[1729555956874,0.149367,67400.0,67399.0,0.0071449]
[1729555957141,0.149367,67400.0,67399.0,0.002826]
[1729555957381,0.149367,67400.0,67399.0,0.0051449]
[1729555957611,0.149367,67400.0,67399.0,0.002826]
[1729555958152,0.149367,67400.0,67399.0,0.0051449]
[1729555959505,0.24369817,67400.0,67399.0,0.002826]
[1729555959752,0.35199936,67400.0,67399.0,0.002826]
[1729555960816,0.39618034,67400.0,67399.0,0.002826]
[1729555961021,0.28787915,67400.0,67399.0,0.002826]
[1729555961480,0.19354798,67400.0,67399.0,0.002826]
[1729555963174,0.37774307,67400.0,67399.0,0.002826]
[1729555963391,0.82951298,67400.0,67399.0,0.002826]
[1729555963645,0.84616321,67400.0,67399.0,0.002826]
[1729555964434,0.84516321,67400.0,67399.0,0.001826]
[1729555964642,0.84516321,67400.0,67399.0,0.002826]
[1729555964643,1.00012236,67400.0,67399.0,0.002826]
[1729555965035,1.00012236,67400.0,67399.0,0.001826]
[1729555965614,1.00112236,67400.0,67399.0,0.001826]
[1729555965823,1.00012236,67400.0,67399.0,0.001826]
[1729555966001,0.83706759,67400.0,67399.0,0.001826]
[1729555966237,1.00402785,67400.0,67399.0,0.001826]
[1729555967347,0.7594876,67400.0,67399.0,0.001826]
[1729555967595,0.86982841,67400.0,67399.0,0.001826]
[1729555967835,0.7621687,67400.0,67399.0,0.001826]
[1729555968297,0.97190954,67400.0,67399.0,0.001826]
[1729555968529,0.8615687,67400.0,67399.0,0.001826]
[1729555968767,0.86109587,67400.0,67399.0,0.001826]
[1729555969691,1.01005502,67400.0,67399.0,0.001826]
[1729555972573,0.84709476,67400.0,67399.0,0.001826]
[1729555973394,1.00996424,67400.0,67399.0,0.001826]
[1729555975185,1.12025575,67400.0,67399.0,0.001826]
[1729555975677,1.1202555,67400.0,67399.0,0.001826]
[1729555975982,0.84709476,67400.0,67399.0,0.001826]
[1729555976853,1.00994737,67400.0,67399.0,0.001826]
[1729555979872,0.85330712,67400.0,67399.0,0.001826]
[1729555981731,0.85598822,67400.0,67399.0,0.001826]
[1729555986938,0.85609547,67400.0,67399.0,0.001826]
[1729555987538,0.75669547,67400.0,67399.0,0.001826]
[1729555988619,0.88913269,67400.0,67399.0,0.001826]
[1729555989103,1.03809184,67400.0,67399.0,0.001826]
[1729555989330,1.12859184,67400.0,67399.0,0.001826]
[1729555989543,0.90565462,67400.0,67399.0,0.001826]
[1729555992378,0.75669547,67400.0,67399.0,0.001826]
[1729555993815,0.68079547,67400.0,67399.0,0.001826]
[1729555995106,0.68244747,67400.0,67399.0,0.001826]
[1729555995338,0.57414628,67400.0,67399.0,0.001826]
[1729555995751,0.68244747,67400.0,67399.0,0.001826]
[1729555995986,0.83140662,67400.0,67399.0,0.001826]
[1729555996770,0.83157902,67400.0,67399.0,0.001826]
[1729555997206,0.57431868,67400.0,67399.0,0.001826]
[1729555997423,0.68261987,67400.0,67399.0,0.001826]
[1729556004680,0.83176936,67400.0,67399.0,0.001826]
[1729556005349,0.68261987,67400.0,67399.0,0.001826]
[1729556005563,0.83176936,67400.0,67399.0,0.001826]
[1729556006587,0.68261987,67400.0,67399.0,0.001826]
[1729556006950,0.42267843,67400.0,67399.0,0.092026]
[1729556008706,0.57209515,67400.0,67399.0,0.092026]
[1729556009329,0.68039634,67400.0,67399.0,0.092026]
[1729556009531,0.73258318,67400.0,67399.0,0.092026]
[1729556009731,0.58316646,67400.0,67399.0,0.001826]
[1729556010069,0.73258318,67400.0,67399.0,0.001826]
[1729556010517,0.58316646,67400.0,67399.0,0.001826]
[1729556013126,0.53097962,67400.0,67399.0,0.001826]
[1729556018055,0.42767843,67400.0,67399.0,0.001826]
[1729556018295,0.42267843,67400.0,67399.0,0.174426]
[1729556021046,0.42299817,67400.0,67399.0,0.174426]
[1729556021688,0.42299817,67400.0,67399.0,0.099226]
[1729556022316,0.57195732,67400.0,67399.0,0.099226]
[1729556024785,0.42299817,67400.0,67399.0,0.099226]
[1729556025988,0.42298339,67400.0,67399.0,0.099226]
[1729556026193,0.4229834,67400.0,67399.0,0.099226]
[1729556028930,0.42297805,67400.0,67399.0,0.099226]
[1729556030905,0.42297544,67400.0,67399.0,0.099226]
[1729556038896,0.46164629,67400.0,67399.0,0.099226]
[1729556044347,0.46167794,67400.0,67399.0,0.099226]
[1729556048663,0.72161938,67400.0,67399.0,0.001826]
[1729556048920,0.92691938,67400.0,67399.0,0.001826]
[1729556049149,0.1484,67385.0,67380.0,0.099026]
[1729556049378,0.42015151,67385.0,67380.0,0.099026]
[1729556049611,0.42014921,67385.0,67384.0,0.00469806]
[1729556049882,0.148409,67381.0,67380.0,0.099026]
[1729556050122,0.42015821,67381.0,67380.0,0.099026]
[1729556051936,0.42015821,67381.0,67380.0,0.105026]
[1729556051937,0.42115821,67381.0,67380.0,0.105026]
[1729556052436,0.42115821,67381.0,67380.0,0.006826]
[1729556052662,0.42115821,67381.0,67380.0,0.014826]
[1729556052663,0.57111736,67381.0,67380.0,0.014826]
[1729556053611,0.68164823,67381.0,67380.0,0.014826]
[1729556054076,0.68164823,67381.0,67380.0,0.019826]
[1729556054604,0.68163068,67381.0,67380.0,0.019826]
[1729556055333,0.53267153,67381.0,67380.0,0.019826]
[1729556055559,0.42215821,67381.0,67380.0,0.019826]
[1729556055791,0.42215821,67381.0,67380.0,0.014826]
[1729556055792,0.68209965,67381.0,67380.0,0.014826]
[1729556056020,0.90389965,67381.0,67380.0,0.014826]
[1729556056540,0.90289965,67381.0,67380.0,0.006826]
[1729556056777,1.0518588,67381.0,67380.0,0.006826]
[1729556057007,1.0508588,67381.0,67380.0,0.002826]
[1729556057507,1.0508588,67381.0,67380.0,0.004826]
[1729556057756,1.0508588,67381.0,67380.0,0.002826]
[1729556058009,1.06463938,67381.0,67380.0,0.003826]
[1729556058916,1.06463938,67381.0,67380.0,0.001826]
[1729556059139,0.148434,67370.0,67369.0,0.22203473]
[1729556059385,0.54637343,67370.0,67369.0,0.22203473]
[1729556059604,0.48017645,67370.0,67369.0,0.00482366]
[1729556059828,0.148445,67365.0,67364.0,0.1786]
[1729556060062,0.25583874,67365.0,67364.0,0.1786]
[1729556060287,0.25583874,67365.0,67364.0,0.18342366]
[1729556061222,0.25583874,67365.0,67364.0,0.10702366]
[1729556061462,0.25683874,67365.0,67364.0,0.11202366]
[1729556061984,0.149445,67365.0,67364.0,0.11202366]
[1729556062671,0.150445,67365.0,67364.0,0.12102366]
[1729556064028,0.150445,67365.0,67364.0,0.12184966]
[1729556067178,0.150445,67365.0,67364.0,0.11684966]
[1729556069418,0.21881915,67365.0,67364.0,0.11684966]
[1729556070929,0.150445,67365.0,67364.0,0.11684966]
[1729556071352,0.150445,67365.0,67364.0,0.11184966]
[1729556071545,0.150445,67365.0,67364.0,0.11684966]
[1729556075774,0.150445,67365.0,67364.0,0.11184966]
[1729556075987,0.150445,67365.0,67364.0,0.01964966]
[1729556075988,0.25874619,67365.0,67364.0,0.01964966]
[1729556076192,0.39602714,67365.0,67364.0,0.01964966]
[1729556077315,0.39602714,67365.0,67364.0,0.01064966]
[1729556077316,0.54666739,67365.0,67364.0,0.01064966]
[1729556077537,0.54566739,67365.0,67364.0,0.00564966]
[1729556077743,0.54666739,67365.0,67364.0,0.01164966]
[1729556077976,0.54766739,67365.0,67364.0,0.01564966]
[1729556078199,0.589738,67365.0,67364.0,0.00564966]
[1729556078416,0.688138,67365.0,67364.0,0.002826]
[1729556078635,0.688138,67365.0,67364.0,0.004826]
[1729556078842,0.57983681,67365.0,67364.0,0.002826]
[1729556079050,0.5357662,67365.0,67364.0,0.000826]
[1729556079433,0.65931005,67365.0,67364.0,0.000826]
[1729556079661,0.6152662,67365.0,67364.0,0.000826]
[1729556080479,0.65930638,67365.0,67364.0,0.000826]
[1729556080691,0.66230638,67365.0,67364.0,0.000826]
[1729556081313,0.66830638,67365.0,67364.0,0.000826]
[1729556082215,0.77330638,67365.0,67364.0,0.000826]
[1729556082394,0.7242662,67365.0,67364.0,0.000826]
[1729556082813,0.7472662,67365.0,67364.0,0.000826]
[1729556082959,0.81337212,67365.0,67364.0,0.000826]
[1729556083576,0.0026811,67361.0,67360.0,0.998827]
[1729556083777,0.58444811,67361.0,67360.0,0.998827]
[1729556083978,0.58444839,67361.0,67360.0,0.998827]
[1729556084414,0.54041054,67361.0,67360.0,0.998827]
[1729556084582,0.58444839,67361.0,67360.0,0.998827]
[1729556084791,0.58744839,67361.0,67360.0,0.998827]
[1729556084999,0.54341054,67361.0,67360.0,0.998827]
[1729556085202,0.58444998,67361.0,67360.0,0.998827]
[1729556085460,0.58744998,67361.0,67360.0,0.998827]
[1729556085664,0.59044998,67361.0,67360.0,0.998827]
[1729556086100,0.30609325,67361.0,67360.0,0.998827]
[1729556086323,0.35013674,67361.0,67360.0,1.095527]
[1729556086542,0.30609325,67361.0,67360.0,1.095527]
[1729556086759,0.30609325,67361.0,67360.0,1.10055136]
[1729556089200,0.30609325,67361.0,67360.0,1.00385136]
[1729556089422,0.48207488,67361.0,67360.0,1.00385136]
[1729556090610,0.43803213,67361.0,67360.0,1.00385136]
[1729556091404,0.50409626,67361.0,67360.0,1.00385136]
[1729556092471,0.60083626,67361.0,67360.0,1.00385136]
[1729556092713,0.46889738,67361.0,67360.0,1.00385136]
[1729556092956,0.30609325,67361.0,67360.0,1.00385136]
[1729556093448,0.55717046,67361.0,67360.0,1.00385136]
[1729556094355,0.5792223,67361.0,67360.0,1.00385136]
[1729556095973,0.46896311,67361.0,67360.0,1.00385136]
[1729556096190,0.64092226,67361.0,67360.0,1.00385136]
[1729556096921,0.64074359,67361.0,67360.0,1.00385136]
[1729556097122,0.74074359,67361.0,67360.0,1.00385136]
[1729556097339,0.87305462,67361.0,67360.0,1.00385136]
[1729556098195,0.87327681,67361.0,67360.0,1.00385136]
[1729556100381,0.85413809,67361.0,67360.0,1.00385136]
[1729556100603,1.03263809,67361.0,67360.0,1.00385136]
[1729556101052,2.1760369,67361.0,67360.0,1.00385136]
[1729556101303,2.40418534,67361.0,67360.0,1.00385136]
[1729556101507,2.12137492,67361.0,67360.0,1.00385136]
[1729556101720,2.51276281,67361.0,67360.0,1.00385136]
[1729556102176,2.41526281,67361.0,67360.0,1.00385136]
[1729556102416,2.18530366,67361.0,67360.0,1.00385136]
[1729556102638,1.83569287,67361.0,67360.0,1.09965136]
[1729556102869,1.82819044,67361.0,67360.0,1.09965136]
[1729556103162,1.72819044,67361.0,67360.0,1.09965136]
[1729556103389,1.72519044,67361.0,67360.0,1.09965136]
[1729556103604,1.71519044,67361.0,67360.0,1.09865136]
[1729556103822,1.56623129,67361.0,67360.0,1.09865136]
[1729556104039,1.68768636,67361.0,67360.0,1.09865136]
[1729556104251,1.69769017,67361.0,67360.0,1.09965136]
[1729556104464,1.68453248,67361.0,67360.0,1.09965136]
[1729556104675,1.68853248,67361.0,67360.0,1.09965136]
[1729556105084,1.68453248,67361.0,67360.0,1.09965136]
[1729556105325,1.68853248,67361.0,67360.0,1.09965136]
[1729556105738,1.68853248,67361.0,67360.0,1.09865136]
[1729556105945,0.57279163,67361.0,67360.0,1.09865136]
[1729556106176,0.42683248,67361.0,67360.0,1.09865136]
[1729556106373,0.31857328,67361.0,67360.0,1.09865136]
[1729556106589,0.31157328,67361.0,67360.0,1.09865136]
[1729556106999,0.32257328,67361.0,67360.0,1.09865136]
[1729556108066,0.159453,67361.0,67360.0,1.09865136]
[1729556109097,0.32258996,67361.0,67360.0,1.09865136]
[1729556113120,0.32424196,67361.0,67360.0,1.09865136]
[1729556113349,0.76827485,67361.0,67360.0,1.09865136]
[1729556113786,0.76827485,67361.0,67360.0,1.00385136]
[1729556119969,0.90100458,67361.0,67360.0,1.00385136]
[1729556120366,0.76827485,67361.0,67360.0,1.00385136]
[1729556121601,0.47320111,67361.0,67360.0,1.00385136]
[1729556124411,0.6223549,67361.0,67360.0,1.00385136]
[1729556125000,0.6223549,67361.0,67360.0,1.17475136]
[1729556125001,0.47320111,67361.0,67360.0,1.17475136]
[1729556127018,0.58167428,67361.0,67360.0,1.17475136]
[1729556127220,0.71217671,67361.0,67360.0,1.00385136]
[1729556127437,0.86113586,67361.0,67360.0,1.00385136]
[1729556129948,1.0895276,67361.0,67360.0,1.00385136]
[1729556130629,1.09681988,67361.0,67360.0,1.00385136]
[1729556131085,1.20529305,67361.0,67360.0,1.00385136]
[1729556131310,1.09681988,67361.0,67360.0,1.00385136]
[1729556131948,1.09181988,67361.0,67360.0,1.00385136]
[1729556132408,1.09981988,67361.0,67360.0,1.00485136]
[1729556132819,1.09981988,67361.0,67360.0,1.00385136]
[1729556133044,1.09181988,67361.0,67360.0,1.00385136]
[1729556133252,1.08581988,67361.0,67360.0,1.00485136]
[1729556133463,1.09581988,67361.0,67360.0,1.00485136]
[1729556133670,1.10681988,67361.0,67360.0,1.00485136]
[1729556135591,2.36151988,67361.0,67360.0,1.00485136]
[1729556136006,2.35480818,67361.0,67360.0,1.00485136]
[1729556136224,2.06687343,67361.0,67360.0,1.00485136]
[1729556136433,1.95411862,67361.0,67360.0,1.00485136]
[1729556136641,2.18284903,67361.0,67360.0,0.999827]
[1729556137083,2.18284903,67361.0,67360.0,1.00499076]
[1729556137521,2.2850746,67361.0,67360.0,1.00499076]
[1729556141463,1.0303746,67361.0,67360.0,1.00499076]
[1729556141679,0.80164419,67361.0,67360.0,1.00499076]
[1729556142116,0.69941862,67361.0,67360.0,1.00499076]
[1729556143398,0.69191619,67361.0,67360.0,1.00499076]
[1729556143613,0.58344302,67361.0,67360.0,1.00499076]
[1729556143825,0.43448387,67361.0,67360.0,1.10239076]
[1729556146675,0.271105,67361.0,67360.0,1.10239076]
[1729556148483,0.43442015,67361.0,67360.0,1.10239076]
[1729556149257,0.271105,67361.0,67360.0,1.10239076]
[1729556151055,0.43441836,67361.0,67360.0,1.10239076]
[1729556152680,0.43441836,67361.0,67360.0,1.17899076]
[1729556155577,0.271105,67361.0,67360.0,1.17899076]
[1729556155935,0.43440162,67361.0,67360.0,1.17899076]
[1729556156295,0.54287479,67361.0,67360.0,1.17899076]
[1729556160646,0.37957817,67361.0,67360.0,1.17899076]
[1729556161088,0.54286644,67361.0,67360.0,1.17899076]
[1729556164517,0.54300314,67361.0,67360.0,1.17899076]
[1729556166171,0.43452997,67361.0,67360.0,1.17899076]
[1729556166838,0.43452997,67361.0,67360.0,1.173827]
[1729556167236,0.43452997,67361.0,67360.0,1.17896049]
[1729556167882,0.52910211,67361.0,67360.0,1.17896049]
[1729556170440,0.43452997,67361.0,67360.0,1.17896049]
[1729556174104,0.43454473,67361.0,67360.0,1.17896049]
[1729556177778,0.43454473,67361.0,67360.0,1.10236049]
[1729556178899,0.271105,67361.0,67360.0,1.00496049]
[1729556179133,0.43453602,67361.0,67360.0,1.00496049]
[1729556179395,0.48563483,67361.0,67360.0,1.00496049]
[1729556179626,0.5088884,67361.0,67360.0,1.00496049]
[1729556180755,0.66034998,67361.0,67360.0,1.00496049]
[1729556182287,0.79182315,67361.0,67360.0,1.00496049]
[1729556182504,0.7983214,67361.0,67360.0,1.00496049]
[1729556182709,0.68984823,67361.0,67360.0,1.00496049]
[1729556182889,0.66659466,67361.0,67360.0,1.00496049]
[1729556183130,1.94319466,67361.0,67360.0,1.00496049]
[1729556183543,2.17199809,67361.0,67360.0,1.00496049]
[1729556188553,2.1718125,67361.0,67360.0,1.00496049]
[1729556188753,2.28028567,67361.0,67360.0,1.00496049]
[1729556188961,2.1718125,67361.0,67360.0,1.00496049]
[1729556191983,2.1768125,67361.0,67360.0,1.00496049]
[1729556193180,2.1718125,67361.0,67360.0,1.00496049]
[1729556193428,2.17673232,67361.0,67360.0,1.00496049]
[1729556211511,2.28527004,67361.0,67360.0,1.00496049]
[1729556213469,2.28528466,67361.0,67360.0,1.00496049]
[1729556214108,2.28528466,67361.0,67360.0,0.94557849]
[1729556214109,2.39375783,67361.0,67360.0,0.94557849]
[1729556214310,2.56075783,67361.0,67360.0,0.94557849]
[1729556214888,2.16870998,67361.0,67360.0,0.94557849]
[1729556215094,2.15770998,67361.0,67360.0,0.94557849]
[1729556215516,2.16070998,67361.0,67360.0,0.79079209]
[1729556215659,2.17170998,67361.0,67360.0,0.58295509]
[1729556217312,2.17170998,67361.0,67331.0,0.00084]
[1729556217313,0.00750243,67337.0,67331.0,0.00084]
[1729556217519,0.00250243,67324.0,67323.0,0.22203473]
[1729556217720,0.28000817,67324.0,67323.0,0.22203473]
[1729556217889,0.28000817,67324.0,67320.0,0.0903]
[1729556217890,0.171542,67321.0,67320.0,0.0903]
[1729556218091,0.23155012,67321.0,67320.0,0.0903]
[1729556218374,0.148564,67311.0,67310.0,0.018835]
[1729556218609,0.29752315,67311.0,67310.0,0.018835]
[1729556218810,0.29752315,67311.0,67310.0,0.013835]
[1729556219049,1.2766,67318.0,67310.0,0.191435]
[1729556219252,0.22203473,67317.0,67312.0,0.005]
[1729556219453,0.148558,67314.0,67312.0,0.005]
[1729556219624,0.297106,67316.0,67313.0,0.005]
[1729556219866,0.148557,67314.0,67313.0,0.005]
[1729556220222,1.2766,67318.0,67315.0,0.0841]
[1729556220434,0.148538,67323.0,67320.0,0.1743]
[1729556220636,0.22203473,67327.0,67320.0,0.1743]
[1729556220637,0.148542,67321.0,67320.0,0.1743]
[1729556220844,0.25701517,67321.0,67320.0,0.1743]
[1729556221891,0.148542,67321.0,67320.0,0.1743]
[1729556222142,0.154542,67321.0,67320.0,0.1743]
[1729556222348,0.15495915,67321.0,67320.0,0.1743]
[1729556222567,0.158542,67321.0,67320.0,0.1743]
[1729556222817,0.19624139,67321.0,67320.0,0.1743]
[1729556225989,0.158542,67321.0,67320.0,0.1743]
[1729556226668,0.158542,67321.0,67320.0,0.180126]
[1729556227617,0.30750115,67321.0,67320.0,0.180126]
[1729556227850,0.30750115,67321.0,67320.0,0.098026]
[1729556228312,0.30750115,67321.0,67320.0,0.103026]
[1729556228565,0.35158462,67321.0,67320.0,0.098026]
[1729556229253,0.35158462,67321.0,67320.0,0.103026]
[1729556229478,0.45055472,67321.0,67320.0,0.103026]
[1729556229705,0.45055472,67321.0,67320.0,0.098026]
[1729556230011,0.45055472,67321.0,67320.0,0.005826]
[1729556230108,0.45055472,67321.0,67320.0,0.000826]
[1729556230333,0.47355472,67321.0,67320.0,0.000826]
[1729556230786,0.53965019,67321.0,67320.0,0.000826]
[1729556231214,0.63965019,67321.0,67320.0,0.000826]
[1729556232094,0.82437786,67321.0,67320.0,0.000826]
[1729556232339,0.73621091,67321.0,67320.0,0.000826]
[1729556232568,0.8242949,67321.0,67320.0,0.000826]
[1729556233442,0.73621091,67321.0,67320.0,0.000826]
[1729556233668,0.81824752,67321.0,67320.0,0.000826]
[1729556233900,0.82324752,67321.0,67320.0,0.000826]
[1729556234110,0.83024752,67321.0,67320.0,0.000826]
[1729556234320,0.93872069,67321.0,67320.0,0.000826]
[1729556234975,0.85068408,67321.0,67320.0,0.000826]
[1729556235205,0.83468408,67321.0,67320.0,0.000826]